{"text_format":"3","workbook":"xlsx","n_sheets":2,"sheets":["Τιμολόγιο χρέωσης","Στοιχεία εταιρείας"],"not_rendered":{"images":1,"defined_names":27},"read":"whole","date_system":"1900"}

{"sheet":"Τιμολόγιο χρέωσης","index":0,"n_rows":35,"n_cols":7,"rows_kept":35,"merged":[[1,3,2,4],[3,3,3,4],[4,3,4,4],[5,3,5,4],[23,1,23,3],[24,1,24,3],[25,1,25,3],[26,1,26,3]]}
[null,"ΤΙΜΟΛΟΓΙΟ","0005"]
[null,{"$f":"TODAY()","v":"2022-04-06"},null,{"$f":"ΣύνολοΤιμολογίου","v":79.65},null," ","Στοιχεία εταιρείας"]
[null,"ΠΡΟΘΕΣΜΙΑ ΠΛΗΡΩΜΗΣ ΕΩΣ:",{"$f":"TODAY()+15","v":"2022-04-21"},null,null," "]
[null,"ΣΤΕΛΛΑ ΚΩΣΤΙΔΟΥ",null,"ADVENTURE WORKS"]
[null,"Fabrikam, Inc.",null,"Οδός Κερασιάς 23456"]
[null,"Οδός Κυψέλης 1234",null,"Θεσσαλονίκη, GR 09876"]
[null,"Αθήνα, GR 12345"]
[null,"ΠΟΣΟΤΗΤΑ","ΛΕΠΤΟΜΕΡΕΙΕΣ","ΤΙΜΗ ΜΟΝΑΔΑΣ","ΣΎΝΟΛΟ ΓΡΑΜΜΗΣ"]
[null,2,"Γραφικά στοιχεία",14.95,{"$f":"IFERROR(InvoiceDetails[[#This Row],[ΤΙΜΗ ΜΟΝΑΔΑΣ]]*InvoiceDetails[[#This Row],[ΠΟΣΟΤΗΤΑ]],\"\")","v":{"v":29.9,"d":"29.90"}}]
[null,5,"Ροδέλες στεγανοποίησης",9.95,{"$f":"IFERROR(InvoiceDetails[[#This Row],[ΤΙΜΗ ΜΟΝΑΔΑΣ]]*InvoiceDetails[[#This Row],[ΠΟΣΟΤΗΤΑ]],\"\")","v":49.75}]
[{"$nulls":4},{"$f":"IFERROR(InvoiceDetails[[#This Row],[ΤΙΜΗ ΜΟΝΑΔΑΣ]]*InvoiceDetails[[#This Row],[ΠΟΣΟΤΗΤΑ]],\"\")","v":0}]
[{"$nulls":4},{"$f":"IFERROR(InvoiceDetails[[#This Row],[ΤΙΜΗ ΜΟΝΑΔΑΣ]]*InvoiceDetails[[#This Row],[ΠΟΣΟΤΗΤΑ]],\"\")","v":0}]
[{"$nulls":4},{"$f":"IFERROR(InvoiceDetails[[#This Row],[ΤΙΜΗ ΜΟΝΑΔΑΣ]]*InvoiceDetails[[#This Row],[ΠΟΣΟΤΗΤΑ]],\"\")","v":0}]
[{"$nulls":4},{"$f":"IFERROR(InvoiceDetails[[#This Row],[ΤΙΜΗ ΜΟΝΑΔΑΣ]]*InvoiceDetails[[#This Row],[ΠΟΣΟΤΗΤΑ]],\"\")","v":0}]
[{"$nulls":4},{"$f":"IFERROR(InvoiceDetails[[#This Row],[ΤΙΜΗ ΜΟΝΑΔΑΣ]]*InvoiceDetails[[#This Row],[ΠΟΣΟΤΗΤΑ]],\"\")","v":0}]
[{"$nulls":4},{"$f":"IFERROR(InvoiceDetails[[#This Row],[ΤΙΜΗ ΜΟΝΑΔΑΣ]]*InvoiceDetails[[#This Row],[ΠΟΣΟΤΗΤΑ]],\"\")","v":0}]
[{"$nulls":4},{"$f":"IFERROR(InvoiceDetails[[#This Row],[ΤΙΜΗ ΜΟΝΑΔΑΣ]]*InvoiceDetails[[#This Row],[ΠΟΣΟΤΗΤΑ]],\"\")","v":0}]
[{"$nulls":4},{"$f":"IFERROR(InvoiceDetails[[#This Row],[ΤΙΜΗ ΜΟΝΑΔΑΣ]]*InvoiceDetails[[#This Row],[ΠΟΣΟΤΗΤΑ]],\"\")","v":0}]
[{"$nulls":4},{"$f":"IFERROR(InvoiceDetails[[#This Row],[ΤΙΜΗ ΜΟΝΑΔΑΣ]]*InvoiceDetails[[#This Row],[ΠΟΣΟΤΗΤΑ]],\"\")","v":0}]
[{"$nulls":4},{"$f":"IFERROR(InvoiceDetails[[#This Row],[ΤΙΜΗ ΜΟΝΑΔΑΣ]]*InvoiceDetails[[#This Row],[ΠΟΣΟΤΗΤΑ]],\"\")","v":0}]
[{"$nulls":4},{"$f":"IFERROR(InvoiceDetails[[#This Row],[ΤΙΜΗ ΜΟΝΑΔΑΣ]]*InvoiceDetails[[#This Row],[ΠΟΣΟΤΗΤΑ]],\"\")","v":0}]
[{"$nulls":4},{"$f":"IFERROR(InvoiceDetails[[#This Row],[ΤΙΜΗ ΜΟΝΑΔΑΣ]]*InvoiceDetails[[#This Row],[ΠΟΣΟΤΗΤΑ]],\"\")","v":0}]
[{"$nulls":4},{"$f":"IFERROR(InvoiceDetails[[#This Row],[ΤΙΜΗ ΜΟΝΑΔΑΣ]]*InvoiceDetails[[#This Row],[ΠΟΣΟΤΗΤΑ]],\"\")","v":0}]
[null,"Έκπτωση"]
[null,"Καθαρό σύνολο",null,null,{"$f":"SUM(InvoiceDetails[ΣΎΝΟΛΟ ΓΡΑΜΜΗΣ])-E24","v":{"v":79.65,"d":"79.65 €"}}]
[null,"Φόρος"]
[null,{"$f":"REPT(ΣτοιχείαΕταιρείας_ΣυντομογραφίαΝομισματικήςΜονάδαςΣας,LEN(ΣτοιχείαΕταιρείας_ΣυντομογραφίαΝομισματικήςΜονάδαςΣας)>0) & \" Άθροισμα\"","v":"EUR Άθροισμα"},null,null,{"$f":"IFERROR(E25+E26, \"\")","v":{"v":79.65,"d":"79.65 €"}}]
[null,"ΣΤΟΙΧΕΙΑ ΠΛΗΡΩΜΉΣ",null,null,"ΑΛΛΕΣ ΠΛΗΡΟΦΟΡΙΕΣ"]
[null,"Όνομα δικαιούχου:",{"$f":" ΣτοιχείαΕταιρείας_ΌνομαΔικαιούχουΤράπεζας","v":"Adventure Works"},null,{"$f":"IFERROR(ΣτοιχείαΕταιρείας_ΤοΌνομάΣας,\"\")","v":"Νικήτας Παπαδόπουλος"}]
[null,"Όνομα τράπεζας:",{"$f":"ΣτοιχείαηΕταιρείας_ΌνομαΤράπεζας","v":"Woodgrove Bank"},null,{"$f":"IFERROR(\"Τηλέφωνο: \" & ΣτοιχείαΕταιρείας_ΤοΤηλέφωνόΣας,\"\")","v":"Τηλέφωνο: 425-555-0150"}]
[null,"Διεύθυνση τράπεζας:",{"$f":"ΣτοιχείαΕταιρείας_ΔιεύθυνσηΤράπεζας","v":"Οδός Πεύκων 234, Θεσσαλονίκη, GR 09876"},null,{"$f":"IFERROR(\"Φαξ: \" & ΣτοιχείαΕταιρείας_ΤοΦαξΣας,\"\")","v":"Φαξ: 425-555-0151"}]
[null,"Αριθμός λογαριασμού:",{"$f":"ΣτοιχείαΕταιρείας_ΤραπεζικόςΛογαριασμός","v":1234567},null,{"$f":"IFERROR(ΣτοιχείαΕταιρείας_ΔιεύθυνσηURLΣας,\"\")","v":"Adventure-Works.com"}]
[null,"Κωδικός υποκαταστήματος (κωδικός SWIFT)",{"$f":"ΣτοιχείαΕταιρείας_ΚωδικόςΥποκαταστήματος","v":9876543210},null,{"$f":"IFERROR(ΣτοιχείαΕταιρείας_ΤοEmailΣας,\"\")","v":"Accounting@Adventure-Works.com"}]
[null,"Αναφορά πληρωμής:",{"$f":"ΑριθμόςΤιμολογίου","v":"0005"},null,{"$f":"IFERROR(IF(LEN(Client_PO),\"Contract/PO: \" & Client_PO,\"\"),\"\")","v":""}]
[null,{"$f":"UPPER(\"Η πληρωμή πρέπει να γίνεται μέσω τραπεζικής μεταφοράς ή επιταγή πληρωτέα σε \" & ΣτοιχείαΕταιρείας_ΕπιταγήΠληρωτέα & \".\")","v":"Η ΠΛΗΡΩΜΗ ΠΡΕΠΕΙ ΝΑ ΓΙΝΕΤΑΙ ΜΕΣΩ ΤΡΑΠΕΖΙΚΗΣ ΜΕΤΑΦΟΡΑΣ Η ΕΠΙΤΑΓΗ ΠΛΗΡΩΤΕΑ ΣΕ ADVENTURE WORKS."}]

{"sheet":"Στοιχεία εταιρείας","index":1,"n_rows":20,"n_cols":5,"rows_kept":20}
[null,"ΣΤΟΙΧΕΙΑ ΕΤΑΙΡΕΙΑΣ"]
[null,"ΣΤΟΙΧΕΙΑ ΕΤΑΙΡΕΊΑΣ ΤΙΜΟΛΟΓΗΣΗΣ","ΤΙΜΗ",null,"Τιμολόγιο χρέωσης"]
[null,"Όνομα","Νικήτας Παπαδόπουλος"]
[null,"Επωνυμία εταιρείας","ADVENTURE WORKS"]
[null,"Διεύθυνση, γραμμή 1","Οδός Κερασιάς 23456"]
[null,"Διεύθυνση, γραμμή 2","Θεσσαλονίκη, GR 09876"]
[null,"Διεύθυνση, γραμμή 3"]
[null,"Διεύθυνση, γραμμή 4"]
[null,"Διεύθυνση, γραμμή 5"]
[null,"Τηλέφωνο","425-555-0150"]
[null,"Φαξ","425-555-0151"]
[null,"Τοποθεσία Web","Adventure-Works.com"]
[null,"Email","Accounting@Adventure-Works.com"]
[null,"Συντομογραφία νομισματικής μονάδας","EUR"]
[null,"Όνομα δικαιούχου για τραπεζικό έμβασμα","Adventure Works"]
[null,"Όνομα τράπεζας","Woodgrove Bank"]
[null,"Διεύθυνση τράπεζας","Οδός Πεύκων 234, Θεσσαλονίκη, GR 09876"]
[null,"Αριθμός λογαριασμού",1234567]
[null,"Κωδικός υποκαταστήματος (κωδικός SWIFT)",9876543210]
[null,"Οι επιταγές είναι πληρωτέες στην εταιρεία","Adventure Works"]